bitfinex-derivatives/quotes_ETHF0:USTF0_20250910
["timestamp","ask_amount","ask_price","bid_price","bid_amount"]
[1757505552279,0.231,4332.9,4332.8,0.6976]
[1757505553484,0.4375,4332.9,4332.8,0.6976]
[1757505553886,0.9498,4332.9,4332.8,0.497]
[1757505555987,0.9498,4332.9,4332.8,0.6976]
[1757505559891,0.6461,4332.9,4332.8,0.6976]
[1757505560078,3.2078,4333.4,4332.8,0.6976]
[1757505560079,0.231,4333.0,4332.8,0.6976]
[1757505560284,0.231,4333.0,4332.9,0.7183]
[1757505560785,0.43,4333.0,4332.9,0.7183]
[1757505569300,0.9449,4333.0,4332.9,0.7183]
[1757505570093,0.642,4333.0,4332.9,0.7183]
[1757505573503,0.9449,4333.0,4332.9,0.7183]
[1757505575105,1.50104549,4333.0,4332.9,0.7183]
[1757505578102,1.19814549,4333.0,4332.9,0.7183]
[1757505578894,1.50104549,4333.0,4332.9,0.7183]
[1757505580306,0.98614549,4333.0,4332.9,0.7183]
[1757505581610,0.231,4333.0,4332.9,0.7183]
[1757505592507,0.6981,4333.5,4333.4,0.5103]
[1757505592812,1.25554881,4333.5,4333.4,0.7052]
[1757505594915,1.25554881,4333.5,4333.4,0.2986]
[1757505598821,1.25554881,4333.5,4333.4,0.5103]
[1757505600823,1.25554881,4333.5,4333.4,0.7052]
[1757505601930,0.55744881,4333.5,4333.4,0.7052]
[1757505602128,0.4997,4334.4,4334.3,0.7052]
[1757505604130,0.6981,4334.4,4334.0,3.2078]
[1757505604327,0.6981,4333.7,4333.6,0.2117]
[1757505604523,0.6981,4333.7,4333.6,0.7052]
[1757505605240,0.6981,4333.7,4333.6,0.4066]
[1757505605436,0.6981,4333.7,4333.6,0.2117]
[1757505606234,0.6981,4333.7,4333.3,0.2986]
[1757505606529,0.521,4333.5,4333.4,0.2117]
[1757505606736,0.1205,4333.0,4332.9,0.2117]
[1757505606933,0.8186,4333.0,4332.9,0.4066]
[1757505607232,0.8186,4333.0,4332.9,0.7052]
[1757505607434,0.4997,4333.0,4332.9,0.7052]
[1757505608835,0.8186,4333.0,4332.5,3.2078]
[1757505609137,0.4997,4332.6,4332.5,3.913]
[1757505610338,0.2976,4332.6,4332.5,3.913]
[1757505610833,0.1205,4333.0,4332.6,0.2986]
[1757505611037,3.5593,4333.5,4332.9,0.2986]
[1757505611226,0.6981,4333.4,4333.3,0.4066]
[1757505611433,0.6981,4333.4,4333.3,0.7052]
[1757505611734,0.2976,4333.4,4333.3,0.7052]
[1757505612741,0.6981,4333.4,4333.3,0.7052]
[1757505613040,0.6981,4333.4,4333.3,0.4066]
[1757505614742,0.6981,4333.4,4333.0,3.2078]
[1757505615037,0.6981,4333.1,4333.0,3.4195]
[1757505615844,0.6981,4333.1,4333.0,3.6144]
[1757505616241,0.6981,4333.1,4333.0,3.913]
[1757505619645,0.6981,4333.1,4333.0,3.9346]
[1757505620744,0.6981,4333.1,4333.0,3.4056]
[1757505622850,0.6981,4333.1,4333.0,0.1978]
[1757505624446,0.6981,4333.1,4333.0,0.7268]
[1757505625346,0.2976,4333.1,4333.0,0.7268]
[1757505626049,0.4967,4333.1,4333.0,0.7268]
[1757505626250,0.7065,4333.1,4333.0,0.7268]
[1757505626639,0.7065,4333.1,4333.0,0.4076]
[1757505628552,0.7065,4333.1,4333.0,0.1978]
[1757505628753,0.4089,4332.8,4332.7,0.517]
[1757505629048,0.7048,4332.8,4332.7,0.7268]
[1757505632652,0.2959,4333.4,4332.8,0.3192]
[1757505632851,0.7048,4333.4,4333.3,0.7268]
[1757505634249,0.7048,4333.4,4333.3,0.1978]
[1757505636949,0.7048,4333.4,4333.0,0.3192]
[1757505639453,0.7048,4333.4,4332.5,3.333]
[1757505639656,0.2959,4333.3,4332.6,0.3192]
[1757505641455,0.7048,4333.3,4333.2,0.1978]
[1757505642355,0.7048,4333.3,4333.2,0.7268]
[1757505644055,0.7048,4333.3,4333.2,0.4076]
[1757505644355,0.7048,4333.3,4333.2,0.1978]
[1757505645546,0.7048,4333.3,4333.2,0.4076]
[1757505645747,0.7048,4333.3,4333.2,0.7268]
[1757505646950,0.1274,4333.0,4332.6,0.3192]
[1757505647148,0.7287,4332.7,4332.6,0.7397]
[1757505647357,0.1274,4332.0,4331.8,3.2078]
[1757505647553,0.7287,4331.9,4331.8,3.2078]
[1757505648354,0.7287,4331.9,4331.8,3.4163]
[1757505652162,0.7287,4331.9,4331.8,3.6283]
[1757505652362,0.7287,4331.9,4331.8,3.9442]
[1757505653659,0.7287,4331.9,4331.8,3.2078]
[1757505653966,0.1274,4332.0,4331.4,0.7364]
[1757505653967,0.3232,4331.5,4331.4,0.7364]
[1757505654356,0.3232,4331.9,4331.4,0.4205]
[1757505654557,0.3232,4331.9,4331.5,0.3159]
[1757505654763,0.5191,4331.9,4331.8,0.4205]
[1757505654964,0.5191,4331.9,4331.8,0.7364]
[1757505655163,0.7287,4331.9,4331.8,0.7364]
[1757505655464,0.7287,4331.9,4331.8,0.4205]
[1757505655663,0.7287,4331.9,4331.5,0.3159]
[1757505656862,0.8561,4331.5,4331.4,0.7364]
[1757505659266,0.3232,4332.6,4332.3,0.3159]
[1757505659568,0.8561,4333.0,4332.9,0.2085]
[1757505660368,0.5191,4333.0,4332.9,0.7364]
[1757505668984,0.5562,4333.2,4333.0,0.3159]
[1757505669182,0.5562,4333.2,4333.1,0.7364]
[1757505670890,0.7521,4333.2,4333.1,0.7364]
[1757505672394,0.9617,4333.2,4333.1,0.7364]
[1757505672690,0.9617,4333.2,4333.1,0.4205]
[1757505673989,0.9617,4333.2,4333.1,0.7364]
[1757505679297,0.9617,4333.2,4333.1,0.2085]
[1757505679494,0.9617,4333.2,4333.1,0.4166]
[1757505679693,0.5562,4333.2,4333.1,0.7333]
[1757505679893,0.3232,4333.2,4333.1,0.7333]
[1757505680381,0.1274,4333.5,4333.1,0.7333]
[1757505680582,0.3594,4334.0,4333.8,0.2138]
[1757505680583,0.5306,4333.9,4333.8,0.2138]
[1757505680783,0.7288,4333.9,4333.8,0.4219]
[1757505681092,0.7288,4333.9,4333.8,0.7386]
[1757505682190,0.5306,4333.9,4333.8,0.7386]
[1757505682386,0.3189,4333.9,4333.8,0.7386]
[1757505682792,0.5306,4333.9,4333.8,0.7386]
[1757505684995,0.3189,4333.9,4333.8,0.7386]
[1757505685888,0.5306,4333.9,4333.8,0.7386]
[1757505691399,0.7288,4333.9,4333.8,0.7386]
[1757505691794,0.7288,4333.9,4333.8,0.4219]
[1757505692800,0.7288,4333.9,4333.7,3.4398]
[1757505692999,0.3189,4333.8,4333.7,3.4398]
[1757505693201,0.7288,4333.8,4333.7,3.4398]
[1757505693503,0.7288,4333.8,4333.7,3.4216]
[1757505699507,0.7288,4333.8,4333.7,3.6297]
[1757505702707,0.7288,4333.8,4333.7,3.9464]
[1757505702907,0.7288,4333.8,4333.7,3.6297]
[1757505703504,0.7288,4333.8,4333.7,3.9464]
[1757505704703,0.5306,4333.8,4333.7,3.9464]
[1757505706206,0.3189,4334.4,4333.7,3.6297]
[1757505706412,0.64063001,4334.4,4334.3,0.2138]
[1757505706618,0.4099,4334.4,4334.3,0.2138]
[1757505706809,3.2078,4335.1,4334.4,0.3167]
[1757505707003,3.2078,4335.1,4334.9,0.2138]
[1757505707004,0.8562,4335.0,4334.9,0.2138]
[1757505708012,0.8562,4335.0,4334.9,3.4216]
[1757505709008,0.8562,4335.0,4334.9,3.6376]
[1757505709714,0.8562,4335.0,4334.9,0.4298]
[1757505711011,0.8562,4335.0,4334.9,0.2138]
[1757505714517,0.658,4335.0,4334.9,0.7225]
[1757505714723,0.8543,4335.0,4334.9,0.2138]
[1757505718914,0.5354,4335.0,4334.4,3.2078]
[1757505719120,0.8147,4334.5,4334.4,3.9319]
[1757505719417,0.2941,4334.9,4334.4,3.6392]
[1757505719623,0.4913,4334.6,4334.5,0.7241]
[1757505720417,0.6876,4334.6,4334.5,0.4314]
[1757505720614,0.6876,4334.6,4334.5,0.7241]
[1757505720815,0.1274,4335.0,4334.5,0.7241]
[1757505721020,0.6876,4334.9,4334.8,0.2154]
[1757505721212,0.6876,4334.9,4334.8,0.7241]
[1757505722624,0.6876,4334.9,4334.8,0.4314]
[1757505722816,0.6876,4334.9,4334.8,0.7241]
[1757505725925,0.6876,4334.9,4334.8,0.4314]
[1757505726523,0.6876,4334.9,4334.8,0.7241]
[1757505727728,0.6876,4334.9,4334.8,0.4314]
[1757505729525,0.5206,4334.5,4334.4,3.4232]
[1757505729726,0.8147,4334.5,4334.4,3.4232]
[1757505730524,0.8147,4334.5,4334.1,0.2927]
[1757505730718,0.6876,4333.9,4333.8,3.4232]
[1757505731119,0.3935,4333.3,4333.2,3.4232]
[1757505731318,0.6876,4333.3,4333.2,3.4232]
[1757505731525,0.6876,4333.3,4333.2,3.9319]
[1757505732727,0.6876,4333.3,4333.2,3.4232]
[1757505733027,0.6876,4333.3,4333.2,3.2078]
[1757505734625,0.6876,4333.3,4333.2,3.4232]
[1757505738127,0.6876,4333.3,4333.2,3.2078]
[1757505739227,0.6876,4333.3,4333.2,3.4098]
[1757505739932,0.6876,4333.3,4333.2,3.6144]
[1757505740130,0.6876,4333.3,4333.2,3.925]
[1757505741133,0.6876,4333.3,4333.2,3.4098]
[1757505741333,0.5401,4333.0,4332.9,0.202]
[1757505741530,0.8513,4333.0,4332.9,0.202]
[1757505741837,0.8513,4333.0,4332.9,0.7172]
[1757505743533,0.8513,4333.0,4332.9,0.4066]
[1757505744426,0.8513,4333.0,4332.9,0.7172]
[1757505750138,0.1271,4333.5,4332.9,0.7172]
[1757505750435,0.7345,4333.4,4333.3,0.7172]
[1757505751332,0.9485,4333.4,4333.3,0.7172]
[1757505753338,0.7295,4333.4,4333.3,0.7172]
[1757505754140,0.7295,4333.4,4333.3,0.202]
[1757505754534,0.7295,4333.4,4333.3,0.7172]
[1757505757040,0.7295,4333.4,4333.3,0.4066]
[1757505757345,0.7295,4333.4,4333.3,0.202]
[1757505758740,0.4183,4333.4,4332.7,3.5184]
[1757505758945,0.1218,4333.0,4332.9,0.202]
[1757505759152,0.8513,4333.0,4332.9,0.202]
[1757505761053,0.3112,4332.9,4332.7,3.2078]
[1757505761249,0.5155,4332.9,4332.8,0.202]
[1757505761445,0.7295,4332.9,4332.8,0.202]
[1757505767051,0.5155,4332.9,4332.8,0.7062]
[1757505767956,0.5119,4333.0,4332.9,0.7239]
[1757505768454,0.2999,4333.0,4332.9,0.7239]
[1757505769153,0.2751,4333.5,4332.9,0.7239]
[1757505769154,0.2999,4333.4,4332.9,0.4243]
[1757505769458,0.5119,4333.9,4333.8,0.7239]
[1757505769655,1.28333202,4333.9,4333.8,0.7239]
[1757505770158,1.28333202,4333.9,4333.8,0.4243]
[1757505770452,0.7075,4333.9,4333.8,0.4243]
[1757505776157,0.7075,4333.9,4333.8,0.7239]
[1757505776855,0.7075,4333.9,4333.4,0.2996]
[1757505777159,0.8364,4333.5,4333.4,0.2101]
[1757505778359,0.8364,4333.5,4333.4,0.4243]
[1757505778560,0.8364,4333.5,4333.4,0.7239]
[1757505778760,0.8364,4333.5,4333.4,3.9317]
[1757505781564,0.8364,4333.5,4333.4,3.2078]
[1757505781967,0.8364,4333.5,4333.4,3.9317]
[1757505792370,0.2999,4333.5,4333.4,3.9317]
[1757505792664,0.2999,4334.3,4333.9,0.2996]
[1757505792868,3.7197,4334.4,4334.3,0.7239]
[1757505793067,3.9153,4334.4,4334.3,0.2101]
[1757505793270,0.4076,4333.7,4333.6,0.5823]
[1757505793469,0.7075,4333.7,4333.6,0.5823]
[1757505794066,0.7075,4333.7,4333.6,0.4243]
[1757505794568,0.7075,4333.7,4333.6,0.2101]
[1757505795165,0.1289,4333.5,4333.4,3.2078]
[1757505795374,0.5365,4333.5,4333.4,3.2078]
[1757505795571,0.8364,4333.5,4333.4,3.2078]
[1757505795871,0.8364,4333.5,4333.4,3.4179]
[1757505799079,0.8364,4333.5,4333.4,3.9395]
[1757505800580,0.2999,4333.5,4333.4,3.9395]
[1757505801384,0.4983,4333.9,4333.5,0.3145]
[1757505801588,0.2019,4333.9,4333.8,0.7294]
[1757505802087,0.698,4333.9,4333.8,0.7294]
[1757505802788,0.698,4333.9,4333.8,0.4149]
[1757505803286,0.698,4333.9,4333.5,0.3145]
[1757505804387,0.698,4333.9,4333.4,3.2078]
[1757505804586,0.698,4333.9,4333.8,0.4149]
[1757505804782,0.698,4333.9,4333.8,0.7294]
[1757505807992,0.2964,4333.8,4333.5,0.3145]
[1757505808198,0.2964,4333.8,4333.7,0.2078]
[1757505808382,0.4961,4333.8,4333.7,0.2078]
[1757505808686,0.698,4333.8,4333.7,0.2078]
[1757505810894,3.2078,4334.4,4333.7,0.4149]
[1757505811096,1.27562416,4334.3,4334.2,0.7294]
[1757505811390,0.4016,4334.3,4334.0,3.2078]
[1757505811591,0.4016,4334.1,4334.0,3.2078]
[1757505811796,0.698,4334.1,4334.0,3.4156]
[1757505813094,0.698,4334.1,4334.0,3.6227]
[1757505813894,0.698,4334.1,4334.0,3.9372]
[1757505815990,0.4983,4334.1,4334.0,3.9372]
[1757505816390,0.2964,4334.1,4334.0,3.9372]
[1757505817404,0.7303,4334.7,4334.6,0.4149]
[1757505817598,0.7303,4334.7,4334.6,3.9372]
[1757505819700,0.93,4334.7,4334.6,3.6227]
[1757505819903,1.50705576,4334.7,4334.6,3.2078]
[1757505820202,5.73775576,4334.7,4334.6,3.2078]
[1757505820903,5.50705576,4334.7,4334.6,3.2078]
[1757505822896,5.50705576,4334.7,4334.6,3.4156]
[1757505823097,5.50705576,4334.7,4334.6,0.2078]
[1757505823403,0.698,4334.7,4334.6,0.7294]
[1757505823704,0.93,4334.7,4334.6,0.7294]
[1757505825210,0.93,4334.7,4334.6,0.4149]
[1757505826902,0.93,4334.7,4334.6,0.2078]
[1757505835505,0.1292,4334.5,4334.4,0.2011]
[1757505835707,0.52,4334.5,4334.4,0.2011]
[1757505836003,0.1289,4335.0,4334.8,0.4047]
[1757505836205,0.9213,4334.9,4334.8,0.7157]
[1757505836403,0.9213,4334.9,4334.8,0.4047]
[1757505839008,0.9213,4334.9,4334.8,0.2011]
[1757505840011,0.2985,4334.8,4334.6,3.2078]
[1757505840314,0.6893,4334.7,4334.6,3.2078]
[1757505840505,0.6893,4334.7,4334.6,3.4089]
[1757505841007,0.6893,4334.7,4334.6,3.9235]
[1757505843013,0.7263,4334.7,4334.6,3.9235]
[1757505843402,0.5305,4334.7,4334.6,3.9235]
[1757505844413,0.2985,4334.7,4334.6,3.9235]
[1757505844611,0.2985,4334.9,4334.6,3.2078]
[1757505844810,0.1958,4334.9,4334.8,0.2011]
[1757505845014,0.3908,4334.9,4334.8,0.2011]
[1757505845319,0.6893,4334.9,4334.8,0.2011]
[1757505846317,0.2985,4334.8,4334.6,3.2078]
[1757505846916,0.6893,4334.8,4334.7,0.2011]
[1757505847511,0.3908,4334.8,4334.6,3.2078]
[1757505847718,0.2985,4334.7,4334.6,3.4089]
[1757505847912,0.6893,4334.7,4334.6,3.4089]
[1757505848815,0.4943,4334.7,4334.6,3.9235]
[1757505849113,0.2985,4334.7,4334.6,3.9235]
[1757505849618,0.4943,4334.7,4334.6,3.9235]
[1757505850720,0.2985,4334.7,4334.6,3.9235]
[1757505851623,0.4943,4334.7,4334.6,3.9235]
[1757505852319,0.6893,4334.7,4334.6,3.9235]
[1757505853020,0.6893,4334.7,4334.6,3.6125]
[1757505853419,0.6893,4334.7,4334.6,3.4089]
[1757505854121,0.6893,4334.7,4334.6,3.2078]
[1757505855626,0.3908,4334.7,4334.1,3.5188]
[1757505855920,0.325,4334.5,4334.2,0.311]
[1757505856126,0.325,4334.5,4334.4,0.7157]
[1757505856729,0.4943,4334.5,4334.4,0.7157]
[1757505857827,0.3071,4334.9,4334.4,0.4047]
[1757505858023,0.7525,4334.8,4334.7,0.7068]
[1757505860022,0.954,4334.8,4334.7,0.7068]
[1757505860829,0.954,4334.8,4334.7,0.3988]
[1757505861124,0.722,4334.8,4334.7,0.3988]
[1757505861327,0.954,4334.8,4334.7,0.7068]
[1757505862033,0.5205,4334.3,4334.2,0.7068]
[1757505863031,0.722,4334.3,4334.2,0.7068]
[1757505863530,0.722,4334.3,4334.2,0.3988]
[1757505864132,0.722,4334.3,4334.2,0.7068]
[1757505864636,0.3071,4334.3,4334.2,0.7068]
[1757505866134,0.5205,4334.3,4334.2,0.7068]
[1757505866336,0.722,4334.3,4334.2,0.7068]
[1757505867633,0.722,4334.3,4334.2,0.3988]
[1757505869238,0.722,4334.3,4334.2,0.7068]
[1757505870537,0.722,4334.3,4334.2,0.3988]
[1757505870742,0.722,4334.3,4334.2,0.7068]
[1757505872040,0.722,4334.3,4334.2,0.3988]
[1757505873641,0.722,4334.3,4334.2,0.7068]
[1757505874040,0.722,4334.3,4334.2,0.3988]
[1757505876242,0.5205,4334.3,4334.2,0.7068]
[1757505876745,0.3071,4334.3,4334.2,0.7068]
[1757505877943,0.5205,4334.3,4334.2,0.7068]
[1757505884646,0.3071,4334.4,4334.2,0.3988]
[1757505884847,0.1203,4334.5,4334.3,0.308]
[1757505885035,0.3337,4334.5,4334.4,0.7068]
[1757505885239,0.5352,4334.5,4334.4,0.7068]
[1757505885442,0.8423,4334.5,4334.4,0.7068]
[1757505888547,0.3071,4334.5,4334.4,0.7068]
[1757505890141,0.8486,4334.5,4334.4,0.3988]
[1757505891444,0.8486,4334.5,4334.4,0.1972]
[1757505892540,0.2941,4334.4,4334.1,3.2078]
[1757505892736,0.4146,4334.2,4334.1,3.2078]
[1757505892942,0.7087,4334.2,4334.1,3.2078]
[1757505894242,0.7087,4334.2,4334.1,3.9146]
[1757505894446,0.5062,4334.2,4334.1,3.9146]
[1757505899346,0.7087,4334.2,4334.1,3.9146]
[1757505903658,0.5062,4334.2,4334.1,3.9146]
[1757505905652,0.2941,4334.2,4334.1,3.9146]
[1757505906354,0.2941,4334.9,4334.5,0.3114]
[1757505906655,0.7087,4334.9,4334.8,0.7068]
[1757505910757,0.2941,4334.9,4334.8,0.7068]
[1757505911256,0.2941,4335.4,4334.9,0.3114]
[1757505911456,1.28954072,4335.3,4335.2,0.1956]
[1757505912261,0.7087,4335.3,4335.2,0.1956]
[1757505917467,0.7087,4335.3,4335.2,0.3954]
[1757505918168,0.7087,4335.3,4335.2,0.6877]
[1757505918670,0.7087,4335.3,4335.2,0.3954]
[1757505919559,0.7087,4335.3,4335.2,0.6877]
[1757505919964,0.7087,4335.3,4335.2,3.8955]
[1757505920462,0.7087,4335.3,4335.2,3.6032]
[1757505923172,0.7087,4335.3,4335.2,3.8955]
[1757505923368,0.7087,4335.3,4335.2,3.6032]
[1757505923767,0.7087,4335.3,4335.2,3.8955]
[1757505925373,0.2941,4335.3,4335.2,3.8955]
[1757505925576,0.4932,4335.3,4335.2,3.8955]
[1757505926979,0.6891,4335.3,4335.2,3.8955]
[1757505927280,0.6891,4335.3,4335.2,3.6032]
[1757505927682,0.6891,4335.3,4335.2,3.8955]
[1757505929485,0.4932,4335.3,4335.2,3.8955]
[1757505931983,0.6891,4335.3,4335.2,3.8955]
[1757505932184,0.6891,4335.3,4335.2,3.6032]
[1757505932581,0.6891,4335.3,4335.2,3.2078]
[1757505932885,0.5067,4334.7,4334.6,3.9144]
[1757505934886,0.3076,4334.7,4334.6,3.9144]
[1757505935982,0.5067,4334.7,4334.6,3.9144]
[1757505936179,0.1228,4335.0,4334.6,3.9144]
[1757505936180,0.3076,4334.9,4334.6,3.6221]
[1757505936381,0.3076,4334.9,4334.8,0.4143]
[1757505936582,0.5067,4334.9,4334.8,0.7066]
[1757505937082,0.7026,4334.9,4334.8,0.7066]
[1757505938886,0.7026,4334.9,4334.8,0.2044]
[1757505939190,0.7026,4334.7,4334.6,3.2078]
[1757505940881,0.7026,4334.7,4334.6,3.9144]
[1757505941181,0.5067,4334.7,4334.6,3.9144]
[1757505941882,0.5067,4335.2,4335.1,0.4143]
[1757505942088,0.5067,4335.2,4335.1,0.7066]
[1757505942385,0.3076,4335.2,4335.1,0.7066]
[1757505943284,0.5067,4335.2,4335.1,0.7066]
[1757505944077,0.3076,4335.2,4335.1,0.7066]
[1757505945488,0.3591,4335.5,4335.2,0.2923]
[1757505945676,0.3076,4335.3,4335.2,0.7066]
[1757505946186,0.5067,4335.3,4335.2,0.7066]
[1757505946487,0.7026,4335.3,4335.2,0.7066]
[1757505946787,0.7026,4335.3,4335.2,0.4143]
[1757505950687,0.7026,4335.3,4335.2,0.7194]
[1757505952187,0.7026,4335.3,4335.2,0.4143]
[1757505952387,0.7026,4335.3,4335.2,0.2044]
[1757505952692,0.7026,4335.3,4335.2,0.7066]
[1757505953989,0.4165,4335.3,4335.2,0.2143]
[1757505954290,0.7196,4335.3,4335.2,0.2143]
[1757505954593,0.7196,4335.3,4335.2,0.4114]
[1757505954892,0.7196,4335.3,4335.2,0.7165]
[1757505956894,0.7196,4335.3,4335.2,0.4114]
[1757505958694,0.7196,4335.3,4335.2,0.7165]
[1757505959388,0.7196,4335.3,4335.2,0.4114]
[1757505960092,0.7196,4335.3,4335.2,0.7165]
[1757505961795,0.3031,4335.3,4335.2,0.7165]
[1757505962995,0.5062,4335.3,4335.2,0.7165]
[1757505963697,0.7196,4335.3,4335.2,0.7165]
[1757505965386,0.7196,4335.3,4335.2,0.4114]
[1757505965792,0.7196,4335.3,4335.2,0.7165]
[1757505965994,0.7196,4335.3,4335.2,0.4114]
[1757505966501,0.7196,4335.3,4335.2,0.2143]
[1757505966694,0.7196,4335.3,4335.1,3.2078]
[1757505966999,0.7196,4335.2,4335.1,3.2078]
[1757505967299,0.7196,4335.2,4335.1,3.4221]
[1757505969695,0.7196,4335.2,4335.1,3.9243]
[1757505972301,0.3031,4335.2,4335.1,3.9243]
[1757505973014,0.3031,4335.4,4335.1,3.6192]
[1757505973206,0.5062,4335.3,4335.2,0.5194]
[1757505973412,0.7196,4335.3,4335.2,0.7165]
[1757505973814,0.5062,4335.3,4335.2,0.7165]
[1757505974015,0.3031,4335.3,4335.2,0.7165]
[1757505976718,0.5062,4335.3,4335.2,0.7165]
[1757505977415,0.7196,4335.3,4335.2,0.7165]
[1757505977714,0.7111,4335.2,4335.1,3.4212]
[1757505978115,0.7111,4335.2,4335.1,3.93]
[1757505978314,0.7111,4335.2,4335.1,3.6168]
[1757505978617,0.7111,4335.2,4335.1,3.93]
[1757505979913,0.7111,4335.2,4335.1,3.6168]
[1757505982120,0.7111,4335.2,4335.1,3.93]
[1757505983422,0.7111,4335.2,4335.1,3.6168]
[1757505984224,0.7111,4335.2,4334.6,3.4212]
[1757505984225,0.4159,4334.7,4334.6,3.4212]
[1757505984423,0.7111,4334.7,4334.6,3.4212]
[1757505984728,0.7111,4334.7,4334.6,3.93]
[1757505985325,0.2952,4334.7,4334.6,3.93]
[1757505986021,0.2952,4334.9,4334.6,3.6168]
[1757505986221,0.2952,4334.9,4334.8,0.7222]
[1757505986422,0.87806744,4334.9,4334.8,0.7222]
[1757505986925,0.2952,4334.9,4334.8,0.7222]
[1757505988123,0.7111,4334.9,4334.8,0.7222]
[1757505988319,0.7111,4334.9,4334.8,0.409]
[1757505988623,0.7111,4334.9,4334.8,0.7222]
[1757505990117,0.7111,4334.9,4334.8,0.409]
[1757505990718,0.7111,4334.9,4334.6,3.521]
[1757505990719,0.7111,4334.9,4334.6,3.2078]
[1757505991020,0.7111,4334.7,4334.6,3.4212]
[1757505991421,0.7111,4334.7,4334.6,3.93]
[1757505992227,0.5012,4334.7,4334.6,3.93]
[1757505992723,0.2952,4334.7,4334.6,3.93]
[1757505994228,0.5012,4334.7,4334.6,3.93]
[1757505997130,0.7111,4334.7,4334.6,3.93]
[1757506004332,0.9413,4334.7,4334.6,3.93]
[1757506006335,0.9413,4334.7,4334.6,3.6168]
[1757506007040,0.9413,4334.7,4334.6,3.93]
[1757506007241,0.9413,4334.7,4334.6,3.6168]
[1757506007740,0.9413,4334.7,4334.6,3.9401]
[1757506009241,0.2302,4334.7,4334.6,3.9401]
[1757506011635,0.5329,4334.7,4334.6,3.9401]
[1757506013541,0.7363,4334.7,4334.6,3.9401]
[1757506015137,0.9505,4334.7,4334.6,3.6168]
[1757506015433,0.9505,4334.7,4334.6,3.2078]
[1757506015434,1.1812,4334.7,4334.6,3.2078]
[1757506015639,1.1812,4334.7,4333.8,0.3233]
[1757506015640,0.842,4334.0,4333.9,0.5369]
[1757506016039,0.842,4334.0,4333.9,0.7344]
[1757506018244,0.7203,4333.9,4333.8,3.9422]
[1757506020448,0.7203,4333.9,4333.8,3.6189]
[1757506021653,0.951,4333.9,4333.8,3.6189]
[1757506022242,0.951,4333.9,4333.8,3.4214]
[1757506022447,0.951,4333.9,4333.8,3.2078]
[1757506023250,0.951,4333.9,4333.3,3.5311]
[1757506023449,0.3027,4333.8,4333.3,3.5311]
[1757506023649,0.2034,4333.4,4333.3,3.9422]
[1757506023855,0.5061,4333.4,4333.3,3.9422]
[1757506024349,0.95107,4333.4,4333.3,3.2078]
[1757506024551,0.7203,4333.3,4333.2,0.2136]
[1757506024748,0.7203,4333.3,4333.2,0.7344]
[1757506025453,0.5061,4333.3,4333.2,0.7344]
[1757506026151,0.5337,4333.3,4333.2,0.7344]
[1757506027552,0.7371,4333.3,4333.2,0.7344]
[1757506029956,0.9513,4333.3,4333.2,0.7344]
[1757506030163,0.9513,4333.3,4332.9,0.3233]
[1757506030358,0.6278,4333.0,4332.9,0.7344]
[1757506031359,0.5061,4333.0,4332.9,0.7344]
[1757506031560,0.3027,4333.0,4332.9,0.7344]
[1757506031962,0.3027,4333.2,4332.9,0.4111]
[1757506032163,0.6486,4333.3,4333.2,0.7344]
[1757506032662,0.9513,4333.3,4333.2,0.7344]
[1757506034554,3.2078,4333.7,4333.2,0.7344]
[1757506034759,0.5061,4333.4,4333.3,0.4111]
[1757506034963,0.3027,4333.4,4333.3,0.7344]
[1757506035260,0.5061,4333.4,4333.3,0.7344]
[1757506035458,0.7203,4333.4,4333.3,0.7344]
[1757506036674,0.7203,4333.4,4333.3,0.4111]
[1757506037566,0.7203,4333.4,4333.3,0.2136]
[1757506037766,0.7203,4333.4,4332.7,3.2078]
[1757506037966,0.3008,4333.3,4332.8,0.2976]
[1757506038268,0.4983,4332.9,4332.8,0.7232]
[1757506038965,0.232,4333.2,4332.8,0.7232]
[1757506039162,0.3008,4333.1,4332.9,0.2976]
[1757506039368,0.3008,4333.1,4332.7,3.2078]
[1757506039369,0.4295,4333.2,4333.1,0.4256]
[1757506039663,0.4295,4333.2,4333.1,0.7232]
[1757506039861,0.6371,4333.2,4333.1,0.7232]
[1757506040060,1.1686,4333.2,4333.1,0.7232]
[1757506040669,0.117,4333.0,4332.8,0.2976]
[1757506040971,0.117,4333.0,4332.9,0.2107]
[1757506041272,0.5221,4333.0,4332.9,0.2107]
[1757506041472,0.8229,4333.0,4332.9,0.2107]
[1757506042170,0.5221,4333.0,4332.7,3.2078]
[1757506042368,0.3008,4332.9,4332.7,3.2078]
[1757506042670,0.7059,4332.8,4332.7,3.4185]
[1757506043070,0.7059,4332.8,4332.7,0.2107]
[1757506050177,0.4051,4332.8,4332.2,0.2976]
[1757506050379,0.3008,4332.7,4332.2,0.52841999]
[1757506050581,0.7059,4332.7,4332.6,0.2107]
[1757506051878,0.7059,4332.7,4332.2,0.2976]
[1757506052079,0.117,4332.5,4332.4,0.2107]
[1757506052278,0.5221,4332.5,4332.4,0.2107]
[1757506052881,0.8229,4332.5,4332.4,0.2107]
[1757506053680,0.8229,4332.5,4332.4,0.7232]
[1757506054183,0.8229,4332.5,4332.4,0.4256]
[1757506055978,0.8229,4332.5,4332.4,0.7232]
[1757506057285,0.3008,4332.5,4332.4,0.7232]